lending/lending_fUSD_20240131
["ID","MTS","AMOUNT","RATE_DAILY","PERIOD"]
[313053021,1706694692299,-978.74,0.00042739,5]
[313053022,1706694692311,-559.12,0.00042739,5]
[313053023,1706694692321,-1639.35,0.00042739,2]
[313053024,1706694692331,-1333.35,0.00042739,5]
[313053025,1706694692340,-3627.45,0.00042739,5]
[313053026,1706694692351,-500.0,0.00042739,5]
[313053027,1706694692360,-581.32,0.00042739,5]
[313053028,1706694692369,-923.07,0.00042739,5]
[313053029,1706694692379,-2637.97,0.00042739,5]
[313053030,1706694692389,-550.71,0.00042739,5]
[313053031,1706694692399,-2102.91,0.00042739,5]
[313053032,1706694692408,-3266.12,0.00042739,5]
[313053033,1706694692418,-2975.79,0.00042739,5]
[313053034,1706694692428,-833.84,0.00042739,5]
[313053035,1706694692438,-1721.76,0.00042739,5]
[313053036,1706694692449,-3438.52,0.00042739,5]
[313053037,1706694692459,-500.0,0.00042739,5]
[313053038,1706694692470,-6564.97,0.00042739,5]
[313053039,1706694692480,-3801.39,0.00042739,5]
[313053040,1706694692490,-1008.58,0.00042739,5]
[313053041,1706694692500,-500.0,0.00042739,5]
[313053042,1706694692511,-809.55,0.00042739,5]
[313053043,1706694692521,-2556.8,0.00042739,5]
[313053044,1706694692531,-513.37,0.00042739,5]
[313053045,1706694692543,-951.74,0.00042739,5]
[313053046,1706694692553,-635.04,0.00042739,5]
[313053047,1706694692563,-500.0,0.00042739,5]
[313053048,1706694692574,-756.38,0.00042739,5]
[313053049,1706694692584,-758.78,0.00042739,5]
[313053050,1706694692600,-918.29,0.00042739,5]
[313053051,1706694692615,-500.0,0.00042739,5]
[313053052,1706694692626,-1308.87,0.00042739,5]
[313053053,1706694692637,-1172.36,0.00042739,5]
[313053054,1706694692647,-742.8,0.00042739,5]
[313053055,1706694692658,-1705.38,0.00042739,5]
[313053056,1706694692668,-1681.92,0.00042739,5]
[313053057,1706694692679,-500.0,0.00042739,5]
[313053058,1706694692689,-500.0,0.00042739,5]
[313053059,1706694692699,-500.0,0.00042739,5]
[313053060,1706694692709,-1100.12,0.00042739,5]
[313053061,1706694692720,-623.78,0.00042739,5]
[313053062,1706694692730,-520.11,0.00042739,5]
[313053063,1706694692741,-813.21,0.00042739,5]
[313053064,1706694692751,-538.14,0.00042739,5]
[313053065,1706694692762,-924.1,0.00042739,5]
[313053066,1706694692772,-874.95,0.00042739,5]
[313053067,1706694692782,-1514.93,0.00042739,5]
[313053068,1706694692792,-766.97,0.00042739,5]
[313053069,1706694692802,-1419.76,0.00042739,5]
[313053070,1706694692811,-1518.73,0.00042739,5]
[313053071,1706694692822,-778.08,0.00042739,5]
[313053072,1706694692832,-1142.46,0.00042739,5]
[313053073,1706694692843,-1585.17,0.00042739,5]
[313053074,1706694692853,-1360.69,0.00042739,5]
[313053075,1706694692864,-3427.93,0.00042739,5]
[313053076,1706694692874,-2181.53,0.00042739,5]
[313053077,1706694692885,-1681.32,0.00042739,5]
[313053078,1706694692896,-1578.68,0.00042739,5]
[313053079,1706694692906,-2245.27,0.00042739,5]
[313053080,1706694692917,-1541.05,0.00042739,5]
[313053081,1706694692927,-1184.78,0.00042739,5]
[313053082,1706694692937,-759.64,0.00042739,5]
[313053083,1706694692948,-2411.41,0.00042739,5]
[313053084,1706694692958,-500.0,0.00042739,5]
[313053085,1706694692969,-721.86,0.00042739,5]
[313053086,1706694692978,-4216.63,0.00042739,5]
[313053087,1706694692988,-875.44,0.00042739,5]
[313053088,1706694692998,-607.11,0.00042739,5]
[313053089,1706694693009,-4080.07,0.00042739,5]
[313053090,1706694693019,-1292.41,0.00042739,5]
[313053091,1706694693029,-2126.77,0.00042739,5]
[313053092,1706694693039,-678.84,0.00042739,5]
[313053093,1706694693049,-837.72,0.00042739,5]
[313053094,1706694693060,-500.0,0.00042739,5]
[313053095,1706694693070,-937.91,0.00042739,5]
[313053096,1706694693080,-794.23,0.00042739,5]
[313053097,1706694693090,-5428.42,0.00042739,5]
[313053098,1706694693100,-500.0,0.00042739,5]
[313053099,1706694693110,-3250.72,0.00042739,5]
[313053100,1706694693120,-1723.78,0.00042739,5]
[313053101,1706694693130,-1600.13,0.00042739,2]
[313053102,1706694693140,-3841.13,0.00042739,5]
[313053103,1706694693151,-2499.59,0.00042739,5]
[313053104,1706694693160,-916.73,0.00042739,5]
[313053105,1706694693170,-1345.99,0.00042739,5]
[313053106,1706694693181,-1935.43,0.00042739,5]
[313053107,1706694693191,-1282.3,0.00042739,5]
[313053108,1706694693201,-866.24,0.00042739,5]
[313053109,1706694693211,-500.0,0.00042739,5]
[313053110,1706694693221,-501.06,0.00042739,5]
[313053111,1706694693231,-1553.81,0.00042739,5]
[313053112,1706694693241,-716.93,0.00042739,5]
[313053113,1706694693251,-795.16,0.00042739,5]
[313053114,1706694693262,-1701.51,0.00042739,5]
[313053115,1706694693273,-500.0,0.00042739,5]
[313053116,1706694693283,-8182.09,0.00042739,5]
[313053117,1706694693293,-500.0,0.00042739,5]
[313053118,1706694693305,-500.0,0.00042739,5]
[313053119,1706694693315,-1231.59,0.00042739,5]
[313053120,1706694693325,-2488.68,0.00042739,5]
[313053121,1706694693335,-500.0,0.00042739,5]
[313053122,1706694693345,-500.0,0.00042739,5]
[313053123,1706694693357,-500.0,0.00042739,5]
[313053124,1706694693367,-500.0,0.00042739,5]
[313053125,1706694693377,-2438.4,0.00042739,5]
[313053126,1706694693386,-630.62,0.00042739,5]
[313053127,1706694693396,-6886.74,0.00042739,5]
[313053128,1706694693406,-1589.99,0.00042739,5]
[313053129,1706694693447,-5341.94,0.00042739,5]
[313053130,1706694693461,-2893.31,0.00042739,5]
[313053131,1706694693471,-1171.68,0.00042739,5]
[313053132,1706694693480,-1344.97,0.00042739,5]
[313053133,1706694693490,-627.97,0.00042739,5]
[313053134,1706694693499,-1680.53,0.00042739,5]
[313053135,1706694693510,-1574.66,0.00042739,5]
[313053136,1706694693519,-5421.11,0.00042739,5]
[313053137,1706694693529,-671.46,0.00042739,5]
[313053138,1706694693539,-1906.82,0.00042739,5]
[313053139,1706694693550,-570.44,0.00042739,5]
[313053140,1706694693560,-636.47,0.00042739,5]
[313053141,1706694693572,-795.9,0.00042739,5]
[313053142,1706694693582,-2775.51,0.00042739,5]
[313053143,1706694693592,-1259.66,0.00042739,5]
[313053144,1706694693602,-500.0,0.00042739,5]
[313053145,1706694693612,-1151.18,0.00042739,5]
[313053146,1706694693621,-500.0,0.00042739,5]
[313053147,1706694693631,-1296.01,0.00042739,5]
[313053148,1706694693642,-564.87,0.00042739,5]
[313053149,1706694693651,-1074.73,0.00042739,5]
[313053150,1706694693661,-3009.11,0.00042739,5]
[313053151,1706694693671,-2425.31,0.00042739,5]
[313053152,1706694693681,-500.0,0.00042739,2]
[313053153,1706694693692,-3095.04,0.00042739,5]
[313053154,1706694693702,-741.97,0.00042739,2]
[313053155,1706694693715,-618.57,0.00042739,5]
[313053156,1706694693726,-1533.89,0.00042739,5]
[313053157,1706694693736,-500.0,0.00042739,5]
[313053158,1706694693746,-621.35,0.00042739,5]
[313053159,1706694693756,-1562.28,0.00042739,5]
[313053160,1706694693766,-1131.88,0.00042739,5]
[313053161,1706694693776,-1000.0,0.00042739,2]
[313053162,1706694693786,-2108.04,0.00042739,5]
[313053163,1706694693796,-500.0,0.00042739,2]
[313053164,1706694693806,-500.0,0.00042739,5]
[313053165,1706694693817,-3901.96,0.00042739,5]
[313053166,1706694693827,-1312.53,0.00042739,5]
[313053167,1706694693837,-1224.84,0.00042739,5]
[313053168,1706694693847,-542.16,0.00042739,5]
[313053169,1706694693856,-500.0,0.00042739,5]
[313053170,1706694693867,-500.0,0.00042739,5]
[313053171,1706694693876,-2008.3,0.0004275,2]
[313053172,1706694693886,-2058.0,0.00042869,30]
[313053173,1706694693896,-37491.75990147,0.00043,23]
[313053174,1706694694122,-2581.55187985,0.00043,23]
[313053175,1706694694135,-942.00261675,0.00043,23]
[313053176,1706694694150,-754.21536128,0.00043,23]
[313053177,1706694694161,-2140.85,0.00043,23]
[313053178,1706694694182,-432.27653367,0.00043,23]
[313053179,1706694694194,-659.879398,0.00043,23]
[313053180,1706694694206,-319.290005,0.00043,23]
[313053181,1706694694218,-621.7494999,0.00043,23]
[313053182,1706694694230,-1998.25,0.00043,23]
[313053183,1706694694242,-2058.17480408,0.00043,23]
[313053184,1706694694252,-576.52799572,0.00043,30]
[313053185,1706694694269,-2023.47200428,0.00043,30]
[313053186,1706694694279,-1693.78220907,0.00043,2]
[313053187,1706694694291,-306.21779093,0.00043,2]
[313053188,1706694694302,-35.79699561,0.00043,7]
[313053189,1706694694518,-300.0,0.00043,7]
[313053190,1706694694537,-892.60083416,0.00043,7]
[313053191,1706694694547,-7769.807823,0.00043,6]
[313053192,1706694694557,-3011.0,0.00043244,2]
[313053193,1706694694568,-151.0131,0.00043248,14]
[313053194,1706694694579,-150.0,0.00043259,2]
[313053195,1706694694589,-500.0,0.00043287,5]
[313053196,1706694694599,-500.0,0.00043287,5]
[313053197,1706694694610,-500.0,0.00043287,5]
[313053198,1706694694621,-954.59,0.00043287,5]
[313053199,1706694694631,-523.05,0.00043287,5]
[313053200,1706694694642,-500.0,0.00043287,5]
[313053201,1706694694651,-708.95,0.00043287,5]
[313053202,1706694694662,-1406.6,0.00043287,5]
[313053203,1706694694672,-612.53,0.00043287,5]
[313053204,1706694694683,-500.0,0.00043287,5]
[313053205,1706694694693,-371.1391219,0.00043287,5]
[313053206,1706694694704,-919.19,0.00043287,5]
[313053207,1706694694714,-1099.01,0.00043287,7]
[313053208,1706694694724,-988.7,0.00043287,5]
[313053209,1706694694734,-500.0,0.00043287,5]
[313053210,1706694694745,-500.0,0.00043287,5]
[313053211,1706694694756,-500.35,0.00043287,2]
[313053212,1706694694766,-500.0,0.00043287,5]
[313053213,1706694694776,-721.58,0.00043287,5]
[313053214,1706694694787,-500.0,0.00043287,5]
[313053215,1706694694797,-500.0,0.00043287,5]
[313053216,1706694694808,-1042.81,0.00043287,5]
[313053217,1706694694819,-540.17,0.00043287,5]
[313053218,1706694694829,-500.0,0.00043287,5]
[313053219,1706694694839,-577.86,0.00043287,5]
[313053220,1706694694849,-792.53,0.00043287,5]
[313053221,1706694694860,-583.71,0.00043287,5]
[313053222,1706694694870,-603.42,0.00043287,5]
[313053223,1706694694879,-500.0,0.00043287,5]
[313053224,1706694694890,-500.0,0.00043287,5]
[313053225,1706694694899,-500.0,0.00043287,5]
[313053226,1706694694909,-500.0,0.00043287,5]
[313053227,1706694694918,-500.0,0.00043287,10]
[313053228,1706694694928,-641.84,0.00043287,5]
[313053229,1706694694939,-772.86,0.00043287,5]
[313053230,1706694694948,-215.40712095,0.00043287,5]
[313053231,1706694694961,-393.5794901,0.00043287,5]
[313053232,1706694694994,-500.0,0.00042191,5]
[313053233,1706694695004,-333.87338895,0.00043287,5]
[313053234,1706694695014,-1088.77542735,0.00043287,5]
[313053235,1706694695027,-158.72457265,0.00043287,5]
[313053236,1706694695038,-500.0,0.00043287,5]
[313053237,1706694695048,-1000.0,0.00043287,7]
[313053238,1706694695058,-500.0,0.00043287,5]
[313053239,1706694695070,-500.0,0.00043287,5]
[313053240,1706694695080,-573.31,0.00043287,5]
[313053241,1706694695090,-547.96542715,0.00043287,5]
[313053242,1706694695103,-338.60457285,0.00043287,5]
[313053243,1706694695113,-500.0,0.00043287,5]
[313053244,1706694695123,-802.81,0.00043287,5]
[313053245,1706694695134,-580.02,0.00043287,5]
[313053246,1706694695146,-769.97,0.00043287,5]
[313053247,1706694695156,-991.05,0.00043287,2]
[313053248,1706694695167,-829.21,0.00043287,5]
[313053249,1706694695178,-1772.16,0.00043287,5]
[313053250,1706694695189,-500.0,0.00043287,5]
[313053251,1706694695200,-500.0,0.00043287,5]
[313053252,1706694695210,-500.0,0.00043287,5]
[313053253,1706694695220,-500.0,0.00043287,5]
[313053254,1706694695232,-551.9,0.00043287,5]
[313053255,1706694695242,-576.97,0.00043287,5]
[313053256,1706694695252,-500.0,0.00043287,5]
[313053257,1706694695264,-742.58,0.00043287,5]
[313053258,1706694695277,-294.2,0.00043287,5]
[313053259,1706694695288,-500.0,0.00043287,5]
[313053260,1706694695299,-500.0,0.00043287,5]
[313053261,1706694695311,-866.57,0.00043287,5]
[313053262,1706694695322,-958.12,0.00043287,5]
[313053263,1706694695332,-714.51,0.00043287,5]
[313053264,1706694695343,-717.95,0.00043287,5]
[313053265,1706694695355,-528.8,0.00043287,5]
[313053266,1706694695366,-500.0,0.00043287,5]
[313053267,1706694695376,-650.16,0.00043287,5]
[313053268,1706694695386,-500.0,0.00043287,5]
[313053269,1706694695396,-769.18,0.00043287,5]
[313053270,1706694695407,-2602.84,0.00043287,5]
[313053271,1706694695418,-1414.55,0.00043287,5]
[313053272,1706694695429,-500.0,0.00043287,5]
[313053273,1706694695440,-861.22,0.00043287,2]
[313053274,1706694695451,-1102.08,0.00043287,5]
[313053275,1706694695462,-500.0,0.00043287,5]
[313053276,1706694695473,-500.0,0.00043287,5]
[313053277,1706694695486,-849.42,0.00043287,5]
[313053278,1706694695496,-2265.45,0.00043287,5]
[313053279,1706694695507,-787.88,0.00043287,5]
[313053280,1706694695519,-2673.5,0.00043287,5]
[313053281,1706694695531,-748.94,0.00043287,5]
[313053282,1706694695542,-1979.4,0.00043287,5]
[313053283,1706694695552,-500.0,0.00043287,5]
[313053284,1706694695562,-1000.0,0.00043287,120]
[313053285,1706694695573,-787.6,0.00043287,5]
[313053286,1706694695584,-584.22,0.00043287,5]
[313053287,1706694695595,-6992.13,0.00043287,5]
[313053288,1706694695606,-843.12,0.00043287,5]
[313053289,1706694695616,-500.0,0.00043287,5]
[313053290,1706694695627,-1311.02,0.00043287,5]
[313053291,1706694695637,-978.74,0.00043287,5]
[313053292,1706694695648,-559.12,0.00043287,5]
[313053293,1706694695658,-1639.35,0.00043287,2]
[313053294,1706694695668,-1333.35,0.00043287,5]
[313053295,1706694695679,-3627.45,0.00043287,5]
[313053296,1706694695690,-500.0,0.00043287,5]
[313053297,1706694695700,-581.32,0.00043287,5]
[313053298,1706694695711,-923.07,0.00043287,5]
[313053299,1706694695722,-2637.97,0.00043287,5]
[313053300,1706694695733,-550.71,0.00043287,5]
[313053301,1706694695743,-2102.91,0.00043287,5]
[313053302,1706694695754,-3266.12,0.00043287,5]
[313053303,1706694695766,-2975.79,0.00043287,5]
[313053304,1706694695776,-833.84,0.00043287,5]
[313053305,1706694695787,-1721.76,0.00043287,5]
[313053306,1706694695798,-3438.52,0.00043287,5]
[313053307,1706694695808,-500.0,0.00043287,5]
[313053308,1706694695823,-6564.97,0.00043287,5]
[313053309,1706694695834,-3801.39,0.00043287,5]
[313053310,1706694695844,-1008.58,0.00043287,5]
[313053311,1706694695854,-500.0,0.00043287,5]
[313053312,1706694695865,-809.55,0.00043287,5]
[313053313,1706694695875,-2556.8,0.00043287,5]
[313053314,1706694695885,-513.37,0.00043287,5]
[313053315,1706694695896,-951.74,0.00043287,5]
[313053316,1706694695907,-635.04,0.00043287,5]
[313053317,1706694695918,-500.0,0.00043287,5]
[313053318,1706694695927,-756.38,0.00043287,5]
[313053319,1706694695938,-758.78,0.00043287,5]
[313053320,1706694695949,-918.29,0.00043287,5]
[313053321,1706694695960,-500.0,0.00043287,5]
[313053322,1706694695970,-1308.87,0.00043287,5]
[313053323,1706694695981,-1172.36,0.00043287,5]
[313053324,1706694695992,-742.8,0.00043287,5]
[313053325,1706694696002,-1705.38,0.00043287,5]
[313053326,1706694696012,-1681.92,0.00043287,5]
[313053327,1706694696022,-500.0,0.00043287,5]
[313053328,1706694696032,-500.0,0.00043287,5]
[313053329,1706694696042,-500.0,0.00043287,5]
[313053330,1706694696053,-1100.12,0.00043287,5]
[313053331,1706694696063,-623.78,0.00043287,5]
[313053332,1706694696074,-520.11,0.00043287,5]
[313053333,1706694696084,-813.21,0.00043287,5]
[313053334,1706694696094,-538.14,0.00043287,5]
[313053335,1706694696104,-924.1,0.00043287,5]
[313053336,1706694696114,-874.95,0.00043287,5]
[313053337,1706694696123,-1514.93,0.00043287,5]
[313053338,1706694696133,-1419.76,0.00043287,5]
[313053339,1706694696144,-766.97,0.00043287,5]
[313053340,1706694696154,-1518.73,0.00043287,5]
[313053341,1706694696165,-778.08,0.00043287,5]
[313053342,1706694696176,-1142.46,0.00043287,5]
[313053343,1706694696186,-1585.17,0.00043287,5]
[313053344,1706694696196,-1360.69,0.00043287,5]
[313053345,1706694696206,-3427.93,0.00043287,5]
[313053346,1706694696217,-2181.53,0.00043287,5]
[313053347,1706694696228,-1681.32,0.00043287,5]
[313053348,1706694696238,-1578.68,0.00043287,5]
[313053349,1706694696249,-2245.27,0.00043287,5]
[313053350,1706694696259,-1541.05,0.00043287,5]
[313053351,1706694696269,-1184.78,0.00043287,5]
[313053352,1706694696281,-759.64,0.00043287,5]
[313053353,1706694696291,-2411.41,0.00043287,5]
[313053354,1706694696302,-500.0,0.00043287,5]
[313053355,1706694696312,-721.86,0.00043287,5]
[313053356,1706694696323,-4216.63,0.00043287,5]
[313053357,1706694696332,-875.44,0.00043287,5]
[313053358,1706694696342,-607.11,0.00043287,5]
[313053359,1706694696352,-4080.07,0.00043287,5]
[313053360,1706694696362,-1292.41,0.00043287,5]
[313053361,1706694696372,-2126.77,0.00043287,5]
[313053362,1706694696382,-678.84,0.00043287,5]
[313053363,1706694696392,-837.72,0.00043287,5]
[313053364,1706694696403,-937.91,0.00043287,5]
[313053365,1706694696413,-500.0,0.00043287,5]
[313053366,1706694696424,-5428.42,0.00043287,5]
[313053367,1706694696434,-794.23,0.00043287,5]
[313053368,1706694696445,-500.0,0.00043287,5]
[313053369,1706694696455,-3250.72,0.00043287,5]
[313053370,1706694696466,-1723.78,0.00043287,5]
[313053371,1706694696477,-1600.13,0.00043287,2]
[313053372,1706694696487,-3841.13,0.00043287,5]
[313053373,1706694696496,-2499.59,0.00043287,5]
[313053374,1706694696506,-916.73,0.00043287,5]
[313053375,1706694696517,-1345.99,0.00043287,5]
[313053376,1706694696527,-1935.43,0.00043287,5]
[313053377,1706694696537,-1282.3,0.00043287,5]
[313053378,1706694696548,-866.24,0.00043287,5]
[313053379,1706694696558,-500.0,0.00043287,5]
[313053380,1706694696568,-501.06,0.00043287,5]
[313053381,1706694696579,-1553.81,0.00043287,5]
[313053382,1706694696590,-716.93,0.00043287,5]
[313053383,1706694696600,-795.16,0.00043287,5]
[313053384,1706694696611,-1701.51,0.00043287,5]
[313053385,1706694696622,-500.0,0.00043287,5]
[313053386,1706694696632,-8182.09,0.00043287,5]
[313053387,1706694696642,-500.0,0.00043287,5]
[313053388,1706694696653,-500.0,0.00043287,5]
[313053389,1706694696663,-1231.59,0.00043287,5]
[313053390,1706694696674,-2488.68,0.00043287,5]
[313053391,1706694696684,-500.0,0.00043287,5]
[313053392,1706694696694,-500.0,0.00043287,5]
[313053393,1706694696704,-500.0,0.00043287,5]
[313053394,1706694696715,-500.0,0.00043287,5]
[313053395,1706694696725,-2438.4,0.00043287,5]
[313053396,1706694696734,-630.62,0.00043287,5]
[313053397,1706694696745,-6886.74,0.00043287,5]
[313053398,1706694696755,-1589.99,0.00043287,5]
[313053399,1706694696765,-5341.94,0.00043287,5]
[313053400,1706694696776,-2893.31,0.00043287,5]
[313053401,1706694696786,-1171.68,0.00043287,5]
[313053402,1706694696796,-1344.97,0.00043287,5]
[313053403,1706694696806,-627.97,0.00043287,5]
[313053404,1706694696816,-1680.53,0.00043287,5]
[313053405,1706694696827,-1574.66,0.00043287,5]
[313053406,1706694696837,-5421.11,0.00043287,5]
[313053407,1706694696847,-671.46,0.00043287,5]
[313053408,1706694696857,-1906.82,0.00043287,5]
[313053409,1706694696867,-570.44,0.00043287,5]
[313053410,1706694696877,-636.47,0.00043287,5]
[313053411,1706694696887,-795.9,0.00043287,5]
[313053412,1706694696896,-2775.51,0.00043287,5]
[313053413,1706694696906,-1259.66,0.00043287,5]
[313053414,1706694696917,-500.0,0.00043287,5]
[313053415,1706694696927,-1151.18,0.00043287,5]
[313053416,1706694696935,-500.0,0.00043287,5]
[313053417,1706694696945,-1296.01,0.00043287,5]
[313053418,1706694696954,-564.87,0.00043287,5]
[313053419,1706694696964,-1074.73,0.00043287,5]
[313053420,1706694696974,-3009.11,0.00043287,5]
[313053421,1706694696983,-2425.31,0.00043287,5]
[313053422,1706694696993,-500.0,0.00043287,2]
[313053423,1706694697003,-3095.04,0.00043287,5]
[313053424,1706694697013,-741.97,0.00043287,2]
[313053425,1706694697022,-618.57,0.00043287,5]
[313053426,1706694697032,-1533.89,0.00043287,5]
[313053427,1706694697042,-500.0,0.00043287,5]
[313053428,1706694697051,-621.35,0.00043287,5]
[313053429,1706694697061,-1562.28,0.00043287,5]
[313053430,1706694697071,-1131.88,0.00043287,5]
[313053431,1706694697081,-1000.0,0.00043287,2]
[313053432,1706694697090,-2108.04,0.00043287,5]
[313053433,1706694697100,-497.91033628,0.00043287,2]
[313053434,1706694697121,-500.0,0.00043287,5]
[313053435,1706694697132,-3901.96,0.00043287,5]
[313053436,1706694697142,-1312.53,0.00043287,5]
[313053437,1706694697151,-1224.84,0.00043287,5]
[313053438,1706694697161,-542.16,0.00043287,5]
[313053439,1706694697171,-500.0,0.00043287,5]
[313053440,1706694697182,-500.0,0.00043287,5]
[313053441,1706694697191,-167.98781226,0.000433,30]
[313053442,1706694697201,-304.4,0.0004336,2]
[313053443,1706694697211,-151.0131,0.00043448,16]
[313053444,1706694697220,-570.86,0.00043677,2]
[313053445,1706694697230,-1001.29,0.00043774,2]
[313053446,1706694697240,-448.08280472,0.000438,30]
[313053447,1706694697250,-4034.0,0.000438,2]
[313053448,1706694697260,-189.99357005,0.00043834,4]
[313053449,1706694697273,-256.70602712,0.00043834,4]
[313053450,1706694697283,-1801.18,0.00043835,5]
[313053451,1706694697293,-1801.18,0.00043835,5]
[313053452,1706694697303,-1801.18,0.00043835,5]
[313053453,1706694697312,-1801.18,0.00043835,5]
[313053454,1706694697322,-1801.18,0.00043835,5]
[313053455,1706694697331,-1801.18,0.00043835,5]
[313053456,1706694697341,-1801.18,0.00043835,5]
[313053457,1706694697352,-1801.18,0.00043835,5]
[313053458,1706694697362,-1801.18,0.00043835,5]
[313053459,1706694697372,-1801.18,0.00043835,5]
[313053460,1706694697382,-1801.18,0.00043835,5]
[313053461,1706694697391,-637.92948716,0.00043835,5]
[313053462,1706694697401,-500.0,0.00043835,5]
[313053463,1706694697410,-500.0,0.00043835,5]
[313053464,1706694697420,-954.59,0.00043835,5]
[313053465,1706694697429,-523.05,0.00043835,5]
[313053466,1706694697439,-500.0,0.00043835,5]
[313053467,1706694697449,-708.95,0.00043835,5]
[313053468,1706694697458,-1406.6,0.00043835,5]
[313053469,1706694697469,-612.53,0.00043835,5]
[313053470,1706694697478,-500.0,0.00043835,5]
[313053471,1706694697488,-919.19,0.00043835,5]
[313053472,1706694697497,-1099.01,0.00043835,7]
[313053473,1706694697507,-988.7,0.00043835,5]
[313053474,1706694697517,-500.0,0.00043835,5]
[313053475,1706694697527,-500.0,0.00043835,5]
[313053476,1706694697537,-500.35,0.00043835,2]
[313053477,1706694697547,-500.0,0.00043835,5]
[313053478,1706694697556,-721.58,0.00043835,5]
[313053479,1706694697566,-500.0,0.00043835,5]
[313053480,1706694697576,-500.0,0.00043835,5]
[313053481,1706694697586,-1042.81,0.00043835,5]
[313053482,1706694697595,-540.17,0.00043835,5]
[313053483,1706694697604,-500.0,0.00043835,5]
[313053484,1706694697613,-577.86,0.00043835,5]
[313053485,1706694697623,-792.53,0.00043835,5]
[313053486,1706694697634,-583.71,0.00043835,5]
[313053487,1706694697643,-603.42,0.00043835,5]
[313053488,1706694697652,-500.0,0.00043835,5]
[313053489,1706694697661,-500.0,0.00043835,5]
[313053490,1706694697670,-500.0,0.00043835,5]
[313053491,1706694697680,-500.0,0.00043835,5]
[313053492,1706694697689,-351.31042656,0.00043835,10]
[313053493,1706694697699,-641.84,0.00043835,5]
[313053494,1706694697709,-772.86,0.00043835,5]
[313053495,1706694697719,-942.86,0.00043835,5]
[313053496,1706694697729,-1247.5,0.00043835,5]
[313053497,1706694697739,-500.0,0.00043835,5]
[313053498,1706694697749,-1039.39841857,0.00043835,7]
[313053499,1706694697758,-500.0,0.00043835,5]
[313053500,1706694697769,-500.0,0.00043835,5]
[313053501,1706694697779,-573.31,0.00043835,5]
[313053502,1706694697789,-886.57,0.00043835,5]
[313053503,1706694697799,-500.0,0.00043835,5]
[313053504,1706694697809,-802.81,0.00043835,5]
[313053505,1706694697820,-580.02,0.00043835,5]
[313053506,1706694697829,-621.60969929,0.00043835,120]
[313053507,1706694697839,-769.97,0.00043835,5]
[313053508,1706694697849,-991.05,0.00043835,2]
[313053509,1706694697858,-829.21,0.00043835,5]
[313053510,1706694697867,-1772.16,0.00043835,5]
[313053511,1706694697877,-211.12290467,0.00043835,5]
[313053512,1706694697886,-500.0,0.00043835,5]
[313053513,1706694697896,-500.0,0.00043835,5]
[313053514,1706694697905,-500.0,0.00043835,5]
[313053515,1706694697915,-551.9,0.00043835,5]
[313053516,1706694697924,-576.97,0.00043835,5]
[313053517,1706694697934,-540.79087306,0.00043835,5]
[313053518,1706694697943,-742.58,0.00043835,5]
[313053519,1706694697953,-500.0,0.00043835,5]
[313053520,1706694697963,-500.0,0.00043835,5]